bitfinex-derivatives/quotes_SOLF0:USTF0_20250830
["timestamp","ask_amount","ask_price","bid_price","bid_amount"]
[1756568510032,2.4544462,200.84,200.78,7.57]
[1756568510329,2.4544462,200.83,200.77,3.13188038]
[1756568510532,7.63,200.85,200.78,7.57]
[1756568510723,2.45499286,200.84,200.78,7.57]
[1756568510922,2.45499286,200.83,200.78,7.57]
[1756568511226,7.63,200.85,200.78,7.57]
[1756568511426,2.4555763,200.84,200.78,7.57]
[1756568511628,7.63,200.82,200.76,7.57]
[1756568511926,2.4555763,200.81,200.74,4.15472734]
[1756568512130,7.63,200.85,200.77,7.57]
[1756568512332,2.45615722,200.84,200.77,7.57]
[1756568512636,2.45615722,200.83,200.77,7.57]
[1756568512835,7.63,200.85,200.77,7.57]
[1756568513032,2.45615038,200.84,200.77,7.57]
[1756568513332,2.45615038,200.83,200.77,7.57]
[1756568513532,7.63,200.85,200.77,7.57]
[1756568513737,2.45670939,200.84,200.77,7.57]
[1756568513934,2.45670939,200.83,200.77,7.57]
[1756568514134,7.63,200.85,200.77,7.57]
[1756568514334,2.45694435,200.84,200.77,7.57]
[1756568514534,2.45694435,200.83,200.77,7.57]
[1756568514735,2.45694435,200.82,200.76,7.28660772]
[1756568514936,7.63,200.85,200.77,7.57]
[1756568515235,2.45696024,200.84,200.77,7.57]
[1756568515433,2.45696024,200.83,200.77,7.57]
[1756568515736,2.45733257,200.82,200.76,7.28660772]
[1756568515931,7.63,200.84,200.77,7.57]
[1756568516126,2.45733267,200.83,200.77,7.57]
[1756568516328,2.45733267,200.82,200.77,4.15472734]
[1756568516538,7.63,200.84,200.78,7.57]
[1756568516737,2.4578456,200.83,200.78,7.57]
[1756568516937,7.63,200.84,200.78,7.57]
[1756568517138,2.45783506,200.83,200.78,7.57]
[1756568517334,2.45783506,200.82,200.78,7.57]
[1756568517639,7.63,200.81,200.78,7.57]
[1756568517830,7.63,200.81,200.77,4.15472734]
[1756568518035,7.63,200.86,200.78,7.57]
[1756568518235,2.45956656,200.85,200.78,7.57]
[1756568518437,2.45956656,200.84,200.78,11.72472734]
[1756568518637,2.45956656,200.83,200.79,7.57]
[1756568518835,2.45956656,200.82,200.78,4.15472734]
[1756568519140,7.63,200.86,200.79,7.57]
[1756568519435,2.46041067,200.85,200.79,7.57]
[1756568519638,2.46041067,200.84,200.78,11.72472734]
[1756568519836,7.63,200.85,200.78,4.15472734]
[1756568519837,2.46041067,200.83,200.78,4.15472734]
[1756568520141,2.46041067,200.82,200.79,7.57]
[1756568520336,7.63,200.85,200.79,7.57]
[1756568520536,2.46106345,200.84,200.78,11.72472734]
[1756568520729,10.09106345,200.83,200.78,4.15472734]
[1756568520931,2.46106345,200.82,200.78,4.15472734]
[1756568521131,7.63,200.83,200.79,7.57]
[1756568521337,2.46181384,200.82,200.78,4.15472734]
[1756568521541,7.63,200.83,200.8,7.57]
[1756568521739,2.46177185,200.82,200.8,7.57]
[1756568521939,7.63,200.83,200.8,7.57]
[1756568522141,2.46177185,200.82,200.8,7.57]
[1756568522337,2.46177185,200.81,200.8,7.57]
[1756568522743,7.63,200.83,200.8,7.57]
[1756568522939,2.46211226,200.82,200.8,7.57]
[1756568523140,7.63,200.83,200.8,7.57]
[1756568523442,2.46278988,200.82,200.8,7.57]
[1756568523636,7.63,200.83,200.8,7.57]
[1756568524039,2.46278988,200.82,200.8,7.57]
[1756568524235,2.46278988,200.81,200.8,7.57]
[1756568525840,2.46278988,200.81,200.8,11.72472734]
[1756568527444,2.46278988,200.81,200.8,7.57]
[1756568528341,2.46278988,200.81,200.8,11.72523237]
[1756568528548,2.46278988,200.81,200.8,7.57]
[1756568531047,2.46278988,200.81,200.79,7.36]
[1756568531243,2.46700554,200.8,200.79,7.36]
[1756568533847,7.86,200.93,200.79,7.36]
[1756568534047,7.86,200.9,200.82,4.15724]
[1756568535147,7.86,200.9,200.81,4.15724]
[1756568535345,5.57633081,200.95,200.81,4.15724]
[1756568535346,3.13188038,200.86,200.81,4.15724]
[1756568535548,3.13188038,200.86,200.78,12.94610245]
[1756568535549,7.86,200.85,200.79,4.15724]
[1756568536245,7.86,200.85,200.81,7.36]
[1756568536448,3.13188038,200.91,200.82,4.15724]
[1756568536643,7.86,200.9,200.82,4.15724]
[1756568538850,7.86,200.9,200.83,4.15724]
[1756568540647,7.86,200.9,200.84,4.15724]
[1756568541241,7.86,200.9,200.83,4.15724]
[1756568541444,7.86,200.9,200.84,4.15724]
[1756568541649,7.86,200.96,200.87,7.36]
[1756568542546,7.86,200.96,200.87,11.51724]
[1756568543047,78.39318813,200.97,200.87,11.51724]
[1756568543246,78.39318813,200.97,200.87,7.36]
[1756568543550,7.86,200.96,200.87,7.36]
[1756568543943,7.86,201.0,200.87,7.36]
[1756568544144,7.86,201.0,200.91,4.15724]
[1756568545153,7.86,201.0,200.91,4.14516232]
[1756568545450,7.86,200.99,200.9,11.50516232]
[1756568545653,3.13188038,201.0,200.86,4.14516232]
[1756568545654,3.13188038,200.93,200.86,4.14516232]
[1756568545854,7.86,200.92,200.85,7.36]
[1756568547553,7.86,200.92,200.83,4.14516232]
[1756568548851,7.86,200.92,200.84,4.14516232]
[1756568549355,7.86,200.92,200.83,4.14516232]
[1756568549656,7.86,200.92,200.84,7.36]
[1756568552253,2.40895895,200.91,200.84,7.36]
[1756568552453,2.40895895,200.9,200.84,7.36]
[1756568552662,2.40895895,200.89,200.83,11.50476697]
[1756568552858,2.40895895,200.88,200.84,7.36]
[1756568553053,2.40895895,200.88,200.83,4.14476697]
[1756568553054,2.40895895,200.87,200.83,4.14476697]
[1756568553252,10.99188038,200.92,200.84,7.36]
[1756568553452,2.40889816,200.91,200.84,11.50476697]
[1756568553766,2.40889816,200.9,200.84,11.50476697]
[1756568554056,2.40889816,200.89,200.84,4.14476697]
[1756568554254,2.40889816,200.88,200.85,7.36]
[1756568554453,2.40889816,200.87,200.84,4.14476697]
[1756568554661,7.86,200.92,200.85,7.36]
[1756568554861,2.40878922,200.91,200.85,11.50476697]
[1756568555061,2.40878922,200.9,200.86,7.36]
[1756568555263,2.40878922,200.89,200.86,7.36]
[1756568555558,2.40878922,200.88,200.85,4.14476697]
[1756568555760,7.86,200.92,200.86,7.36]
[1756568556070,2.40863331,200.91,200.85,7.36]
[1756568556459,2.40860739,200.9,200.84,7.27664735]
[1756568556761,2.40860739,200.89,200.84,7.27664735]
[1756568556960,2.40860739,200.88,200.85,7.36]
[1756568557263,7.86,200.92,200.85,7.36]
[1756568557463,2.40876762,200.91,200.85,7.36]
[1756568557664,2.40876762,200.9,200.84,7.27664735]
[1756568557866,2.40876762,200.89,200.84,7.27664735]
[1756568558067,2.40876762,200.88,200.85,12.22476697]
[1756568558266,8.07,200.95,200.87,7.27664735]
[1756568558461,2.40840315,200.94,200.88,8.08]
[1756568558662,2.40840315,200.93,200.88,8.08]
[1756568558863,2.40840315,200.92,200.87,7.27664735]
[1756568559064,2.40840315,200.91,200.88,8.08]
[1756568559264,8.07,200.95,200.88,8.08]
[1756568559466,2.40804614,200.94,200.88,11.21188038]
[1756568559667,2.40804614,200.93,200.88,7.27664735]
[1756568559867,2.40804614,200.92,200.89,8.08]
[1756568560069,11.20188038,200.99,200.9,12.22476697]
[1756568560263,2.40701446,200.98,200.92,8.08]
[1756568560563,8.07,200.99,200.92,8.08]
[1756568560564,2.40701446,200.97,200.92,8.08]
[1756568560763,2.40701446,200.96,200.91,3.13188038]
[1756568561067,2.40701446,200.95,200.91,3.13188038]
[1756568561269,8.07,200.99,200.92,8.08]
[1756568561464,2.4062126,200.98,200.92,8.08]
[1756568561664,2.4062126,200.97,200.91,3.13188038]
[1756568561865,2.4062126,200.96,200.92,8.08]
[1756568562170,2.4062126,200.95,200.92,8.08]
[1756568562371,8.07,200.99,200.92,8.08]
[1756568562571,2.40548786,200.98,200.92,8.08]
[1756568562772,2.40548786,200.97,200.91,7.27664735]
[1756568563072,8.07,200.99,200.92,8.08]
[1756568563268,2.40445792,200.98,200.92,8.08]
[1756568563468,2.40445792,200.97,200.92,8.08]
[1756568563669,8.07,200.99,200.92,8.08]
[1756568563869,2.40445792,200.98,200.92,8.08]
[1756568564070,2.40445792,200.97,200.91,7.27664735]
[1756568564370,8.07,200.99,200.92,8.08]
[1756568564573,2.40360296,200.98,200.92,8.08]
[1756568564874,8.07,200.99,200.92,8.08]
[1756568565071,2.40360266,200.98,200.92,8.08]
[1756568565371,8.07,200.99,200.92,8.08]
[1756568565567,2.4028433,200.98,200.92,8.08]
[1756568565768,8.07,200.99,200.92,8.08]
[1756568566073,2.4028436,200.98,200.92,8.08]
[1756568566266,334.54,201.06,200.94,3.13188038]
[1756568566267,8.07,201.05,200.94,3.13188038]
[1756568566468,2.40203696,201.04,200.94,11.21188038]
[1756568566669,8.07,201.02,200.94,11.21188038]
[1756568566869,2.40203696,201.01,200.94,11.21188038]
[1756568567066,8.07,201.02,200.94,11.21188038]
[1756568567270,2.40138998,201.01,200.94,11.21188038]
[1756568567568,2.40138998,201.0,200.94,11.21188038]
[1756568567870,2.40138998,200.99,200.95,8.08]
[1756568568073,8.07,201.02,200.95,8.08]
[1756568568269,2.40079481,201.01,200.95,8.08]
[1756568568468,2.40079481,201.0,200.94,3.13188038]
[1756568568668,8.07,201.02,200.95,8.08]
[1756568568868,2.40077909,201.01,200.95,8.08]
[1756568569068,8.07,201.02,200.95,8.08]
[1756568569268,2.39995563,201.01,200.95,8.08]
[1756568569470,8.07,201.02,200.95,8.08]
[1756568569669,2.39995563,201.01,200.95,8.08]
[1756568569874,8.07,201.02,200.95,8.08]
[1756568570071,123.04,201.17,200.99,8.08]
[1756568570271,10.46867707,201.09,200.99,8.08]
[1756568570471,2.39867707,201.08,200.99,8.08]
[1756568570771,2.39867707,201.07,200.99,8.08]
[1756568570972,2.39867707,201.06,200.99,8.08]
[1756568571172,8.07,201.09,200.99,8.08]
[1756568571372,2.39730841,201.08,200.99,8.08]
[1756568571674,2.39730841,201.07,200.99,11.21188038]
[1756568571875,2.39730841,201.06,200.99,11.21188038]
[1756568572075,8.07,201.09,200.99,11.21188038]
[1756568572269,2.39626891,201.08,200.99,11.21188038]
[1756568572473,2.39626891,201.07,200.99,11.21188038]
[1756568572675,8.07,201.09,200.99,11.21188038]
[1756568572975,2.39625302,201.08,200.99,11.21188038]
[1756568573171,8.07,201.06,201.0,8.08]
[1756568573374,3.13188038,201.1,201.0,8.08]
[1756568573375,8.07,201.04,201.0,8.08]
[1756568575375,8.07,201.04,200.98,3.13188038]
[1756568575674,8.07,201.04,200.98,11.21188038]
[1756568575872,8.07,201.04,200.98,8.08]
[1756568584281,8.07,201.02,200.98,8.08]
[1756568585681,8.07,201.06,200.97,8.08]
[1756568585882,2.39306902,201.05,200.97,8.08]
[1756568586181,2.39306902,201.04,200.97,8.08]
[1756568586380,8.07,201.06,200.97,8.08]
[1756568586581,8.07,201.04,200.97,8.08]
[1756568586879,2.39337753,201.03,200.97,8.08]
[1756568587079,8.07,201.04,200.97,8.08]
[1756568588480,2.39353354,201.03,200.93,7.51]
[1756568588785,10.23353354,201.02,200.93,7.51]
[1756568588985,2.39353354,201.01,200.93,7.51]
[1756568589587,7.84,201.02,200.93,7.51]
[1756568591578,7.84,201.02,200.94,3.13188038]
[1756568591883,7.84,201.0,200.9,4.11396564]
[1756568592079,7.84,200.97,200.87,7.51]
[1756568592381,7.84,200.95,200.87,7.51]
[1756568593089,7.84,200.93,200.87,7.51]
[1756568593388,2.39525961,200.92,200.87,7.51]
[1756568593590,7.84,200.9,200.87,7.51]
[1756568594199,7.84,200.94,200.86,3.13188038]
[1756568594390,7.84,200.94,200.87,7.51]
[1756568598895,37.97849093,200.93,200.83,4.11396564]
[1756568599099,7.84,200.83,200.76,4.11396564]
[1756568599296,7.84,200.83,200.75,11.62396564]
[1756568599499,7.84,200.83,200.75,7.51]
[1756568599699,2.39832482,200.82,200.75,7.51]
[1756568600000,7.84,200.83,200.75,7.51]
[1756568600198,2.39835108,200.82,200.75,7.51]
[1756568600500,7.84,200.83,200.75,7.51]
[1756568601403,3.13188038,200.81,200.75,7.51]
[1756568601899,3.13188038,200.9,200.71,11.62396564]
[1756568601900,3.13188038,200.78,200.71,11.62396564]
[1756568602105,10.97188038,200.78,200.71,7.51]
[1756568602303,10.97188038,200.81,200.71,7.51]
[1756568603800,3.13188038,200.78,200.71,7.51]
[1756568607005,10.97188038,200.79,200.71,7.51]
[1756568607606,3.13188038,200.86,200.73,3.13188038]
[1756568607808,7.84,200.85,200.74,7.51]
[1756568614609,3.13188038,200.84,200.74,7.51]
[1756568615200,3.13188038,200.84,200.74,10.64188038]
[1756568615507,7.84,200.83,200.74,10.64188038]
[1756568615809,7.84,200.83,200.74,7.51]
[1756568620212,8.09,200.89,200.8,8.06]
[1756568620909,3.13188038,200.87,200.8,8.06]
[1756568621209,8.09,200.86,200.8,8.06]
[1756568623111,8.09,200.86,200.71,8.06]
[1756568623416,8.09,200.86,200.76,11.19188038]
[1756568623713,8.09,200.86,200.77,8.06]
[1756568625309,8.09,200.91,200.81,3.13188038]
[1756568625613,3.13188038,200.92,200.81,3.13188038]
[1756568625614,8.09,200.89,200.81,3.13188038]
[1756568626214,8.09,200.89,200.87,3.13188038]
[1756568626713,8.09,200.97,200.86,3.13188038]
[1756568626914,8.09,200.95,200.86,3.13188038]
[1756568627114,8.09,200.93,200.86,3.13188038]
[1756568628717,65.67188038,201.0,200.89,3.13188038]
[1756568628910,10.47580646,200.99,200.89,3.13188038]
[1756568629108,8.09,200.97,200.89,3.13188038]
[1756568629417,8.09,200.95,200.89,3.13188038]
[1756568632118,8.09,200.95,200.89,11.19188038]
[1756568632823,8.09,201.01,200.92,3.13188038]
[1756568633017,8.09,200.99,200.92,3.13188038]
[1756568633220,2.38980791,200.98,200.92,3.13188038]
[1756568633421,8.09,200.99,200.92,3.13188038]
[1756568633720,2.3908084,200.98,200.92,3.13188038]
[1756568633920,8.09,200.99,200.92,3.13188038]
[1756568634121,2.39068434,200.98,200.92,3.13188038]
[1756568634318,8.09,200.99,200.92,3.13188038]
[1756568634523,2.39160912,200.98,200.92,3.13188038]
[1756568634723,8.09,200.99,200.92,3.13188038]
[1756568635022,2.39119824,200.98,200.92,3.13188038]
[1756568635223,8.09,200.99,200.92,3.13188038]
[1756568635421,2.39178863,200.98,200.92,3.13188038]
[1756568635625,8.09,200.99,200.92,3.13188038]
[1756568635918,2.39186112,200.98,200.92,3.13188038]
[1756568636123,8.09,201.01,200.92,3.13188038]
[1756568636319,8.09,200.99,200.92,3.13188038]
[1756568636623,2.39186112,200.98,200.92,3.13188038]
[1756568636823,8.09,200.96,200.92,3.13188038]
[1756568637216,8.09,201.01,200.92,3.13188038]
[1756568637419,8.09,200.99,200.92,3.13188038]
[1756568637623,2.39209829,200.98,200.92,3.13188038]
[1756568637824,8.09,200.99,200.92,3.13188038]
[1756568638029,8.09,200.97,200.91,8.06]
[1756568638228,8.09,200.97,200.91,11.19188038]
[1756568640423,2.39145741,200.96,200.87,8.06]
[1756568640729,8.09,200.94,200.87,8.06]
[1756568641026,2.39196586,200.93,200.87,8.06]
[1756568641325,3.13188038,200.97,200.87,8.06]
[1756568641326,8.09,200.91,200.87,8.06]
[1756568641827,8.09,200.96,200.87,8.06]
[1756568642124,8.09,200.94,200.87,8.06]
[1756568642323,2.39198696,200.93,200.87,8.06]
[1756568642524,8.09,200.91,200.87,8.06]
[1756568642824,8.09,200.96,200.87,8.06]
[1756568643125,8.09,200.94,200.87,8.06]
[1756568643321,8.09,200.92,200.85,3.13188038]
[1756568643819,2.39262703,200.91,200.85,3.13188038]
[1756568644021,10.48277807,200.9,200.83,3.13188038]
[1756568644224,2.39277807,200.89,200.83,3.13188038]
[1756568646829,2.39277807,200.89,200.86,3.13188038]
[1756568647030,10.48277807,200.89,200.86,3.13188038]
[1756568647230,8.11,200.94,200.86,3.13188038]
[1756568647533,8.11,200.92,200.86,3.13188038]
[1756568647722,2.39361674,200.91,200.86,3.13188038]
[1756568647927,8.11,200.89,200.86,3.13188038]
[1756568649125,8.11,200.96,200.86,3.13188038]
[1756568649330,8.11,200.94,200.86,3.13188038]
[1756568649530,8.11,200.92,200.86,3.13188038]
[1756568649734,8.11,200.9,200.86,3.13188038]
[1756568650029,2.3940446,200.89,200.87,7.79]
[1756568650228,8.11,201.0,200.89,10.92188038]
[1756568650430,8.11,200.98,200.91,3.13188038]
[1756568650627,8.11,200.96,200.91,3.13188038]
[1756568650929,2.39508565,200.95,200.91,3.13188038]
[1756568651130,8.11,200.93,200.91,3.13188038]
[1756568651326,2.39508565,200.92,200.91,3.13188038]
[1756568652232,8.11,200.93,200.91,3.13188038]
[1756568652830,8.11,200.93,200.89,7.79]
[1756568653328,411.23761514,201.06,200.89,7.79]
[1756568653329,3.13188038,201.04,200.91,3.13188038]
[1756568653535,10.50654352,201.03,200.92,7.79]
[1756568653729,8.11,201.01,200.92,7.79]
[1756568653925,2.39654352,201.0,200.92,7.79]
[1756568654130,2.39654352,200.99,200.92,10.92188038]
[1756568654335,2.39654352,200.98,200.92,10.92188038]
[1756568654530,2.39654352,200.97,200.92,3.13188038]
[1756568654834,8.11,200.99,200.93,7.79]
[1756568655027,2.39614384,200.98,200.93,7.79]
[1756568655226,8.11,200.99,200.93,7.79]
[1756568655527,2.39597535,200.98,200.92,3.13188038]
[1756568655728,8.11,200.99,200.93,7.79]
[1756568655927,2.39597535,200.98,200.93,7.79]
[1756568656127,8.11,200.99,200.93,7.79]
[1756568659136,8.11,201.04,200.95,10.92188038]
[1756568659332,2.39520936,201.03,200.96,7.79]
[1756568659636,8.11,201.07,200.99,3.13188038]
[1756568659831,2.39510918,201.06,200.99,10.92188038]
[1756568660030,2.39510918,201.05,200.99,10.92188038]
[1756568660230,8.11,201.03,200.99,7.79]
[1756568660837,8.11,201.08,200.99,7.79]
[1756568661136,2.39455815,201.07,200.99,7.79]
[1756568661333,2.39455815,201.06,201.01,3.13188038]
[1756568661634,2.39399408,201.05,201.02,7.79]
[1756568661836,8.11,201.06,201.02,7.79]
[1756568662037,2.39399428,201.05,201.02,7.79]
[1756568662238,8.11,201.06,201.02,7.79]
[1756568662836,8.11,201.11,201.01,10.92188038]
[1756568663037,2.39342292,201.1,201.01,10.92188038]
[1756568663236,8.11,201.08,201.01,10.92188038]
[1756568663440,2.39342292,201.07,201.01,10.92188038]
[1756568663633,10.50342292,201.06,201.01,10.92188038]
[1756568663840,2.39342292,201.05,201.01,10.92188038]
[1756568664040,8.11,201.06,201.02,7.79]
[1756568664239,2.39303264,201.05,201.01,10.92188038]
[1756568664541,8.11,201.07,201.01,10.92188038]
[1756568664740,10.50296611,201.06,201.01,10.92188038]
[1756568664940,2.39296611,201.05,201.01,10.92188038]
[1756568665141,8.11,201.11,201.01,10.92188038]
[1756568665342,2.39296602,201.1,201.01,10.92188038]
[1756568665541,8.11,201.08,201.01,10.92188038]
[1756568665741,2.39296602,201.07,201.01,10.92188038]
[1756568665938,10.50296602,201.06,201.01,10.92188038]
[1756568666140,2.39296602,201.05,201.01,10.92188038]
[1756568666441,8.11,201.06,201.01,10.92188038]
[1756568666640,2.39240656,201.05,201.01,10.92188038]
[1756568666835,8.11,201.06,201.01,10.92188038]
[1756568667041,2.39240656,201.05,201.01,10.92188038]
[1756568667241,8.11,201.06,201.01,10.92188038]
[1756568667443,2.39233444,201.05,201.01,10.92188038]
[1756568667643,8.11,201.06,201.01,10.92188038]
[1756568667938,10.50233444,201.05,201.01,10.92188038]
[1756568668144,8.11,201.05,201.01,10.92188038]
[1756568668643,8.11,201.05,201.01,3.13188038]
[1756568668847,8.11,201.05,201.01,10.92188038]
[1756568669446,8.11,201.05,201.01,3.13188038]
[1756568669648,8.11,201.05,201.02,7.79]
[1756568670248,8.11,201.1,201.02,7.79]
[1756568670544,2.39308405,201.09,201.02,7.79]
[1756568670741,2.39308405,201.08,201.02,7.79]
[1756568670942,2.39308405,201.07,201.01,10.92188038]
[1756568671143,2.39308405,201.06,201.02,7.79]
[1756568671341,2.39308405,201.05,201.02,7.79]
[1756568671540,8.11,201.06,201.02,7.79]
[1756568671742,2.39291688,201.05,201.02,7.79]
[1756568671946,8.11,201.11,201.02,7.79]
[1756568672145,2.39291647,201.1,201.02,7.79]
[1756568672346,8.11,201.09,201.02,7.79]
[1756568673250,11.24188038,201.09,201.02,7.79]
[1756568674457,8.11,201.09,201.02,7.79]
[1756568682264,8.11,201.09,201.03,7.66]
[1756568682760,7.83,201.13,201.03,7.66]
[1756568682963,7.83,201.13,201.06,7.66]
[1756568683359,7.83,201.13,201.02,7.66]
[1756568683658,7.83,201.13,201.04,7.66]
[1756568685361,7.83,201.17,201.07,7.66]
[1756568688161,3.13188038,201.18,201.07,7.66]
[1756568688162,0.86542407,201.22,201.07,7.66]
[1756568688369,0.86542407,201.22,201.0,7.24729648]
[1756568688370,7.83,201.23,201.13,7.66]
[1756568688566,7.83,201.23,201.16,7.66]
[1756568688966,8.6951874,201.27,201.18,3.13188038]
[1756568689271,7.83,201.27,201.19,7.66]
[1756568689573,7.83,201.27,201.21,3.13188038]
[1756568690167,7.83,201.29,201.21,7.66]
[1756568691070,7.83,201.29,201.22,3.13188038]
[1756568692868,7.83,201.29,201.23,7.66]
[1756568694168,7.83,201.34,201.25,3.13188038]
[1756568696171,7.83,201.34,201.23,7.66]
[1756568698676,7.83,201.32,201.23,7.66]
[1756568700978,7.83,201.3,201.23,7.66]
[1756568709378,3.13188038,201.33,201.23,7.66]
[1756568709379,7.86,201.35,201.23,7.66]
[1756568709677,10.99188038,201.35,201.23,7.66]
[1756568709982,10.99188038,201.35,201.24,3.13188038]
[1756568710183,10.99188038,201.35,201.25,8.07]
[1756568711586,7.86,201.35,201.25,8.07]
[1756568719885,7.86,201.35,201.28,8.07]
[1756568720492,123.92863,201.4,201.28,8.07]
[1756568720684,0.18863,201.4,201.31,8.07]
[1756568721284,0.18863,201.4,201.38,8.07]
[1756568721489,0.18863,201.4,201.37,3.13188038]
[1756568721786,0.18863,201.4,201.38,8.07]
[1756568721992,0.18863,201.4,201.37,3.63188038]
[1756568722187,0.18863,201.4,201.38,8.07]
[1756568722388,0.18863,201.4,201.37,3.63188038]
[1756568722689,0.18863,201.4,201.38,8.07]
[1756568723194,7.86,201.5,201.4,8.07]
[1756568723588,7.86,201.5,201.42,3.13188038]
[1756568723793,7.86,201.5,201.4,8.07]
[1756568723991,7.86,201.48,201.4,8.07]
[1756568724190,7.86,201.48,201.42,8.07]
[1756568724390,7.86,201.52,201.42,8.07]
[1756568727399,7.86,201.57,201.47,8.07]
[1756568727601,7.86,201.57,201.5,8.07]
[1756568727799,3.13188038,201.61,201.5,8.07]
[1756568727993,124.46,201.6,201.52,11.20188038]
[1756568728190,124.46,201.6,201.52,8.07]
[1756568728397,3.13188038,201.58,201.48,11.20188038]
[1756568728603,3.13188038,201.58,201.43,3.13188038]
[1756568728604,3.13188038,201.55,201.43,3.13188038]
[1756568728797,10.99188038,201.54,201.44,8.07]
[1756568729195,56.94,201.53,201.44,8.07]
[1756568729400,3.13188038,201.51,201.44,8.07]
[1756568729599,7.86,201.52,201.44,8.07]
[1756568729897,3.13188038,201.51,201.44,8.07]
[1756568730090,3.13188038,201.51,201.35,8.88]
[1756568730291,7.86,201.5,201.4,3.13188038]
[1756568730496,3.13188038,201.58,201.41,8.07]
[1756568730801,7.86,201.55,201.44,8.07]
[1756568731105,3.13188038,201.53,201.44,8.07]
[1756568731404,7.86,201.52,201.44,8.07]
[1756568732099,0.86366287,201.6,201.44,11.20188038]
[1756568732301,7.86,201.57,201.48,8.07]
[1756568732494,7.86,201.61,201.5,3.13188038]
[1756568732695,7.86,201.61,201.51,8.07]
[1756568733003,7.86,201.61,201.53,3.13188038]
[1756568733202,7.86,201.61,201.54,3.13188038]
[1756568734199,7.86,201.61,201.54,11.20188038]
[1756568734605,7.86,201.61,201.54,8.07]
[1756568735200,333.84,201.63,201.54,8.07]
[1756568735503,132.7,201.71,201.55,8.07]
[1756568735704,7.86,201.68,201.55,8.07]
[1756568736097,12.18,201.67,201.56,8.07]
[1756568736299,7.86,201.68,201.56,8.07]
[1756568736498,8.02,201.71,201.59,8.07]
[1756568736697,7.86,201.7,201.59,8.07]
[1756568737299,61.58,201.7,201.59,8.07]
[1756568737505,7.86,201.7,201.59,8.07]
[1756568737899,7.52,201.75,201.57,7.62]
[1756568738102,7.52,201.75,201.48,13.5396226]
[1756568738103,7.52,201.73,201.61,7.62]
[1756568738307,98.3,201.72,201.61,7.62]
[1756568738509,126.18,201.71,201.61,7.62]
[1756568738710,7.52,201.7,201.61,7.62]
[1756568739415,126.22,201.69,201.61,7.62]
[1756568739710,4.9596226,201.67,201.55,7.62]
[1756568739908,7.52,201.63,201.49,7.62]
[1756568740413,7.52,201.61,201.49,7.62]
[1756568740712,7.52,201.61,201.39,45.3]
[1756568740713,7.52,201.59,201.44,7.62]
[1756568741107,7.52,201.59,201.47,7.62]
[1756568741108,49.12,201.58,201.47,7.62]
[1756568741405,333.46,201.71,201.55,4.9596226]
[1756568741606,134.26,201.7,201.56,7.62]
[1756568741807,7.52,201.67,201.56,7.62]
[1756568742109,7.52,201.65,201.56,7.62]
[1756568742312,53.12,201.64,201.56,7.62]
[1756568742703,103.44,201.63,201.56,7.62]
[1756568742904,4.9596226,201.69,201.56,12.5796226]
[1756568743106,4.9596226,201.69,201.57,7.62]
[1756568743507,11.96,201.68,201.57,7.62]
[1756568743716,60.16,201.67,201.57,7.62]
[1756568743912,106.32,201.66,201.57,7.62]
[1756568744714,113.84,201.66,201.57,7.62]
[1756568744916,113.84,201.66,201.48,12.56]